Workbook

Sheet Projektdaten
A1: Tabelle zur Ermittlung der förderfähigen Ausgaben (EfA)
A2: Anlage 2 zum Aufruf zur Antragseinreichung zur Förderung von elektrischen Nutzfahrzeugen für Handwerksunternehmen und KMU (08/2020)
A4: Mithilfe dieser Tabelle können Sie die Grundlage für Ihre Förderung berechnen. Die Fördersumme berechnet sich aus der Multiplikation der hier berechneten förderfähigen Ausgaben mit der Förderquote. Bitte befüllen Sie diese Anlage, bevor Sie den Antrag in easy-Online ausfüllen. Im Reiter "Fahrzeuge N1" finden Sie als Auswahlfeld alle Fahrzeuge, für die aktuelle Preislisten veröffentlicht wurden. Für diese Fahrzeuge werden Pauschalen ausgezahlt. Nur wenn das Fahrzeug, welches Sie beantragen möchten, nicht darunter ist, können Sie es im Reiter "N2, N3; Umrüstungen" selbst eingeben. Übertragung in easy-Online: Im letzten Reiter "Vorlage für AZA" finden Sie eine Aufstellung Ihrer Fördergegenstände. Bitte übertragen Sie diese in Ihr easy-Online Formular unter der Rubrik "Gesamtfinanzierung". Als "Preis € / Stück" werden die förderfähigen Ausgaben aus der EfA-Tabelle eingetragen. Übermitteln Sie uns die Tabelle bitte in drei Varianten: 1. Im pdf-Format als Anhang zum easy-Online Antrag, 2. als Ausdruck per Post als Anlage zum Antrag sowie 3. im Excel-Format per E-Mail für die Begleitforschung an: elektromobilitaet@now.de
A20: Übersichtsblatt Stammdaten - Bitte tragen Sie Ihre Projektdaten ein | P20: JAoNEIN | Q20: Antragsteller | R20: Raumkategorie | S20: Einsatzkontext | T20: Standortyp | U20: Beschilderung
A21: Projekt | B21: Allgemeine Infornationen | C21: Projekt-Kurzbezeichnung (Akronym) | P21: Ja | Q21: gewerblich | R21: Großstadt/Metropolregion > 500.000 EW | S21: Carsharing (1P) | T21: Firmenparkplatz (Flotte) | U21: Negative Beschilderung mit Zeichen 286, 290.1
C22: Projekt-Beschreibung (Titel) | P22: Nein | Q22: kommunal | R22: Großstadt > 100.000 EW | S22: CarSharing (Float) | T22: Halböffentlich | U22: Positive Beschilderung mit Zeichen 314, 314.1, 315
C23: Ausführende Institution | R23: Mittelstadt > 50.000 EW | S23: Carsharing (nP) | T23: Öffentlich am Wohnort | U23: Nein
C24: Raumkategorie | R24: Kleinstadt > 10.000 EW | S24: Dienstwagen | T24: Öffentlich zentral
C25: Gibt es einen Bezug zu einem aktuell eingereichten Forschungs- und Entwicklungsprojekt? | R25: Stadt/Gemeinde < 10.000 EW | S25: Flotte (Firmen) | T25: Privat
B26: Fahrzeug | C26: Anzahl Fahrzeuge im gesamten Fuhrpark | R26: Landgemeinde | S26: Flotte (Kommunal) | T26: Firmenparkplatz (private Nutzung)
C27: davon bereits E-Fahrzeuge | R27: ausserhalb einer Ansiedlung | S27: Flotte (Mietwagen) | T27: Firmen- oder Betriebsgelände
C28: Einsatzkontext | S28: Kombination
C29: Planen sie weitere Umstellungen auf alternative Antriebe innerhalb ihrer Flotte bis 2025 (bezogen auf die Gesamtanzahl in Zeile 26)? | S29: ÖPNV-Flotte
C30: Falls ja: Anzahl der Umstellung in den kommenden 1-2 Jahren (2021/22) | S30: Privatwagen
C31: Falls ja: Anzahl der Umstellung in den darauffolgenden 1-3 Jahren (2023 – 2025) | S31: Lieferverkehr
C32: Ersetzen die beantragten E-Fahrzeuge vorhandene konventionelle Fahrzeuge? | S32: Taxi
C33: Fahren Ihre Fahrzeuge überwiegend im Stadtgebiet? | S33: Leasing
C34: An wievielen Tagen im Jahr werden die E-Fahrzeuge durchschnittlich im Einsatz sein?
B35: Ladeinfrastruktur | C35: Haben Sie bereits vorhandene Ladeinfrastruktur?
C36: Falls ja, wieviele Ladepunkte?
C37: Standorttyp der geplanten LIS
C38: Wird die LIS öffentlich zugänglich?
C39: Planen Sie eine Beschilderung des Parkplatzes?
C40: Planen Sie den Parkplatz mit Parkraumsensoren auszustatten?
C41: Planen Sie die Errichtung weiterer Ladepunkte?
C42: Falls ja: Wie viele Ladepunkte in den kommenden 1-2 Jahren (2021-22)?
C43: Falls ja: Wie viele Ladepunkte in den darauffolgenden 1-3 Jahren (2023-25)?

Sheet Fahrzeugklasse N1, N2
A1: Tabelle zur Ermittlung der förderfähigen Ausgaben (EfA) | D1: ja | E1: nein | G1: Stand: 09.09.2021 | I1: FKZ: 03EMIN
A2: Hinweise: | G2: korrigiert: 18.06.2021
A3: Die Registerkarte 'Vorlage für AZA' stellt Ihre Eingaben so dar, wie sie in das easy-Online-Formular eingetragen werden müssen. | G3: ergänzt: 25.08.2023
A5: Wählen Sie in der Liste unten die gewünschten Fahrzeuge (Auswahlbox) und die entsprechende Anzahl aus.
A6: Für Ladeinfrastruktur sowie Fahrzeuge der Klassen N2, N3 und Umrüstungen wählen Sie bitte die entsprechenden Registerkarten.
A7: Speichern Sie die ausgefüllten Arbeitsblätter im pdf-Format und fügen Sie sie dem Antrag bei.
A8: Grün unterlegte Felder sind Eingabefelder.
N9: 0.16
A10: Pos. | B10: Typ E-Fahrzeug [Auswahlbox] | C10: Nettopreis E-Fahrzeug | D10: Typ Referenzfahrzeug | E10: Nettopreis Referenzfahrzeug in Euro | F10: Förderfähige Ausgaben pro Fahrzeug (netto) in Euro | G10: Anzahl zu beschaffender Fahrzeuge des Typs | H10: erwartete durchschnittliche Jahres-Fahrleistung pro Fahrzeug in km | I10: Förderfähige Ausgaben in Euro | J10: Korrekturfeld PtJ
A11: 1 | C11: =IF($B11>0,VLOOKUP($B11,$L$34:$U$81,2,0),"") ->  | D11: =IF($B11>0,VLOOKUP($B11,$L$34:$U$81,4,0),"") ->  | E11: =IF($B11>0,VLOOKUP($B11,$L$34:$U$81,5,0),"") ->  | F11: =IF(B11>0,VLOOKUP($B11,$L$34:$S$81,7,0),"") ->  | G11: 3 | I11: =IF(B11>0,F11*G11,"") -> 
A12: =A11+1 -> 2
A13: =A12+1 -> 3
A14: =A13+1 -> 4
A15: =A14+1 -> 5
A16: =A15+1 -> 6
A17: 7
A18: 8
A19: =A18+1 -> 9
A20: 10
A21: 11
A22: 12
A23: =A22+1 -> 13
A24: 14
A25: 15
A26: 16
A27: =A26+1 -> 17
A28: =A27+1 -> 18
A29: =A28+1 -> 19
A30: =A29+1 -> 20
A31: Summe | I31: =SUM(I11:I30) -> 0
B32: die Formulierung "alle N1-Versionen" schließt auch aufgelastete Fahrzeuge mit N2-Zulassung mit ein.
L33: E-Fahrzeug | M33: E-Listenpreis netto | N33: E-Listenpreis brutto | O33: Vergleichsfahrzeug | P33: Listenpreis netto | Q33: Listenpreis brutto | R33: förderfähig netto | S33: förderfähig brutto | T33: Info Segment | U33: Fahrzeugklassen Abkürzung | W33: Eingefügt/korrigiert
L34: ARI 901 (alle N1-Versionen) | M34: 29800 | N34: =ROUND(M34*(1+$N$9),2) -> 34568 | O34: Nissan NV200 Kasten | P34: 15350 | Q34: =ROUND(P34*(1+$N$9),2) -> 17806 | R34: =ROUND(M34-P34,0) -> 14450 | S34: 16762 | T34: Utility | U34: NFZ
L35: CITROËN E-JUMPY 50kWh (alle N1-Versionen) | M35: 35250 | N35: 40890 | O35: CITROËN E-JUMPY Blue HDi 120 90 kW | P35: 26500 | Q35: =P35*1.16 -> 30740 | R35: 8750 | S35: 10150 | T35: Utility | U35: NFZ | V35: Vergleichsbasis: CITROËN E-JUMPY M 50kWh (Control) | W35: 2020-08-20
L36: CITROËN E-JUMPY 75kWh (alle N1-Versionen) | M36: 40250 | N36: 46690 | O36: CITROËN E-JUMPY Blue HDi 120 90 kW | P36: 26500 | Q36: =P36*1.16 -> 30740 | R36: 13750 | S36: 15950 | T36: Utility | U36: NFZ | V36: Vergleichsbasis: CITROËN E-JUMPY M 75kWh (Control) | W36: 2020-08-20
L37: CITROËN Berlingo Electric L1 | M37: =ROUND(N37/1.19,2) -> 20990 | N37: 24978.1 | O37: Citroën Berlingo L1 | P37: =ROUND(Q37/1.19,2) -> 14500 | Q37: 17255 | R37: 6490 | S37: 7723 | T37: Utility (N1) | U37: NFZ | W37: 2021-09-09
L38: CITROËN Berlingo Electric L1, Batterie zur Miete | M38: 15690 | N38: 18671.1 | O38: Citroën Berlingo L1 | P38: 14500 | Q38: 17255 | R38: 1190 | S38: 1416 | T38: Utility (N1) | U38: NFZ | W38: 2021-09-09
L39: CITROËN Berlingo Electric L2 | M39: 22040 | N39: 26227.6 | O39: Citroën Berlingo L2 | P39: 15350 | Q39: 18266.5 | R39: 6690 | S39: 7961 | T39: Utility (N1) | U39: NFZ | W39: 2021-09-09
L40: CITROËN Berlingo Electric L2, Batterie zur Miete | M40: 16740 | N40: 19920.6 | O40: Citroën Berlingo L2 | P40: 15350 | Q40: 18266.5 | R40: 1390 | S40: 1654 | T40: Utility (N1) | U40: NFZ | W40: 2021-09-09
L41: EVUM aCar (alle N1-Versionen) | M41: 28990 | N41: 33628.4 | O41: Piaggio Porter Maxxi Chassis | P41: 16302.52 | Q41: =ROUND(P41*1.16,2) -> 18910.92 | R41: 12687 | S41: 14717 | T41: Utility | U41: NFZ | W41: 2020-08-20
L42: Fiat E-Ducato 47 kWh (alle N1/N2-Versionen) | M42: 56000 | N42: 64960 | O42: Fiat Ducato 88 KW | P42: 30840 | Q42: 35774.4 | R42: =ROUND(M42-P42,0) -> 25160 | S42: =ROUND(N42-Q42,0) -> 29186 | T42: Utility | U42: NFZ | V42: Vergleich L2H2 N2-Version als Ausstattungsvariante, da sonst schlechter gefördert und keine Version mit passender Zuladung als Vergleich verfügbar | W42: 2020-08-10
L43: Fiat E-Ducato 79 kWh (alle N1/N2-Versionen) | M43: 73000 | N43: 84680 | O43: Fiat Ducato 88 KW | P43: 30840 | Q43: 35774.4 | R43: 42160 | S43: 48906 | T43: Utility | U43: NFZ | V43: Vergleich L2H2 N2-Version als Ausstattungsvariante, da sonst schlechter gefördert und keine Version mit passender Zuladung als Vergleich verfügbar | W43: 2020-08-10
L44: Ford e-Transit (alle N1/N2 -Versionen) | M44: 57920 | N44: 67187.2 | O44: Ford Transit (gleiche Nutzlast + Radstand) | P44: 37720 | Q44: 43755.2 | R44: 20200 | S44: 23432 | T44: Utility | U44: NFZ | V44: Mittelwert aus allen verfügbaren Modellen mit vorhandenem VGL-Fzg. Bei 4,25t-Variante fehlt vergleichbarer Verbrenner | W44: 2022-03-01
L45: ISEKI Goupil G4 (9 kWh) (alle N1-Versionen) | M45: =28486.55+1035.29+359.66 -> 29881.5 | N45: 34662.54 | O45: Piaggio Porter Chassis | P45: 13193.28 | Q45: 15304.2 | R45: 16688 | S45: 19358 | T45: Utility | U45: NFZ
L46: ISEKI Goupil G4 (13,8 kWh) (alle N1-Versionen) | M46: =32268.07+1035.29+359.66 -> 33663.02 | N46: 39049.1 | O46: Piaggio Porter Chassis | P46: 13193.28 | Q46: 15304.2 | R46: =ROUND(M46-P46,0) -> 20470 | S46: =ROUND(N46-Q46,0) -> 23745 | T46: Utility | U46: NFZ
L47: ISEKI Goupil G5 (11,5 kWh) (alle N1-Versionen) | M47: 34967.23 | N47: 40561.99 | O47: Piaggio Porter Chassis | P47: 13193.28 | Q47: 15304.2 | R47: =ROUND(M47-P47,0) -> 21774 | S47: 25258 | T47: Utility | U47: NFZ
L48: ISEKI Goupil G5 (19,2 kWh) (alle N1-Versionen) | M48: 44294.96 | N48: 51382.15 | O48: Piaggio Porter Chassis | P48: 13193.28 | Q48: 15304.2 | R48: 31102 | S48: 36078 | T48: Utility | U48: NFZ
L49: MAN e-TGE | O49: wie VW e-Crafter | R49: =R80 -> 18900 | S49: =S80 -> 22491 | T49: Utility | U49: NFZ | V49: 44250
L50: Maxus EV 80 (alle N1-Versionen) | M50: 52400 | N50: 60784 | O50: Maxus Deliver 9 | P50: 29990 | Q50: =ROUND(P50*(1+$N$9),2) -> 34788.4 | R50: =ROUND(M50-P50,0) -> 22410 | S50: =ROUND(N50-Q50,0) -> 25996 | T50: Utility | U50: NFZ | V50: Vergleich mit Deliver 9 aus eigenem Hause, Fahrgestell wie Panelvan | W50: 2020-08-10
L51: MAXUS eDELIVER 72 kWh (alle N1-Versionen) | M51: 64490 | N51: 74808.4 | O51: Maxus Deliver 9 | P51: 36490 | Q51: 42328.4 | R51: 28000 | S51: =ROUND(N51-Q51,0) -> 32480 | T51: Utility | U51: NFZ | W51: 2023-08-25
L52: MAXUS eDELIVER 89 kWh (alle N1-Versionen) | M52: =64490+7500 -> 71990 | N52: =ROUND(M52*(1+$N$9),2) -> 83508.4 | O52: Maxus Deliver 9 | P52: 36490 | Q52: 42328.4 | R52: =ROUND(M52-P52,0) -> 35500 | S52: =ROUND(N52-Q52,0) -> 41180 | T52: Utility | U52: NFZ | W52: 2023-08-25
L53: Mercedes Benz eVito (alle N1-Versionen) | M53: 44990 | N53: 52188.4 | O53: Mercedes Benz Vito Kasten Worker | P53: 18990 | Q53: 22028.4 | R53: =ROUND(M53-P53,0) -> 26000 | S53: 30160 | T53: Utility | U53: NFZ
L54: Mercedes Benz eSprinter 35 kWh (alle N1/N2-Versionen) | M54: 53900 | N54: 62524 | O54: Mercedes Benz Sprinter Kasten 211 CDI | P54: 32485 | Q54: 37682.6 | R54: =ROUND(M54-P54,0) -> 21415 | S54: =ROUND(N54-Q54,0) -> 24841 | T54: Utility | U54: NFZ | V54: A2 Hochdach, installierte Kapazität 41 kWh
L55: Mercedes Benz eSprinter 47 kWh (alle N1/N2-Versionen) | M55: 61273 | N55: =ROUND(M55*(1+$N$9),2) -> 71076.68 | O55: Mercedes Benz Sprinter Kasten 211 CDI | P55: 32485 | Q55: =ROUND(P55*(1+$N$9),2) -> 37682.6 | R55: =ROUND(M55-P55,0) -> 28788 | S55: =ROUND(N55-Q55,0) -> 33394 | T55: Utility | U55: NFZ | V55: A2 Hochdach, installierte Kapazität 55 kWh | W55: 2020-08-20
L56: Nissan e-NV200 Kasten (alle N1-Versionen) | M56: 28660 | N56: 0 | O56: Nissan NV200 Kasten | P56: 15350 | Q56: 17806 | R56: 13310 | S56: -17806 | T56: Utility | U56: NFZ | V56: Nissan NV 200 ist nicht mehr erhältlich, Nachfolger Nissan NV 250
L57: Nissan Townstar EV (alle N1-Versionen) | M57: 33750 | N57: =ROUND(M57*(1.19),2) -> 40162.5 | O57: Nissan Townstar Visia | P57: 20210 | Q57: =ROUND(P57*(1.19),2) -> 24049.9 | R57: 13540 | S57: 16113 | T57: Utility | U57: NFZ | W57: 2023-01-23
L58: Opel Vivaro-E 50 kWh (alle N1-Versionen) | M58: 36240 | N58: 42038.4 | O58: Opel Vivaro Cargo M 90 kW | P58: 28280 | Q58: 32804.8 | R58: 7960 | S58: 9234 | T58: Utility | U58: NFZ
L59: Opel Vivaro-E 75 kWh (alle N1 Versionen) | M59: 41240 | N59: 47838.4 | O59: Opel Vivaro Cargo M 90 kW | P59: 28280 | Q59: 32804.8 | R59: 12960 | S59: 15034 | T59: Utility | U59: NFZ
L60: Peugeot Partner electrique (L1) (alle N1-Versionen) | M60: 21290 | N60: 24696.4 | O60: Peugeot Partner (L1) BlueHDi 75 | P60: 16630 | Q60: 19290.8 | R60: =ROUND(M60-P60,0) -> 4660 | S60: 5406 | T60: Utility | U60: NFZ
L61: Peugeot Partner electrique (L2) (alle N1-Versionen) | M61: 22340 | N61: 25914.4 | O61: Peugeot Partner (L2) Blue Hdi 100 | P61: 19380 | Q61: 22480.8 | R61: 2960 | S61: 3434 | T61: Utility | U61: NFZ
L62: Peugeot E-Expert 50kWh (alle N1-Versionen) | M62: 35250 | N62: 40890 | O62: Peugeot Expert Blue HDi 120 90 kW (Pro) | P62: 26500 | Q62: =P62*1.16 -> 30740 | R62: 8750 | S62: 10150 | T62: Utility | U62: NFZ | V62: Vergleich au Basis Peugeot Expert L2 | W62: 2020-08-20
L63: Peugeot E-Expert 75kWh (alle N1-Versionen) | M63: 40250 | N63: 46690 | O63: Peugeot Expert Blue HDi 120 90 kW (Pro) | P63: 26500 | Q63: =P63*1.16 -> 30740 | R63: 13750 | S63: 15950 | T63: Utility | U63: NFZ | V63: Vergleich au Basis Peugeot Expert L2 | W63: 2020-08-20
L64: Renault Kangoo Z.E. 33 2-Sitzer, mit Batteriemiete (alle N1-Versionen) | M64: 20820 | N64: =ROUND(M64*(1+$N$9),2) -> 24151.2 | O64: Renault Kangoo Rapid Blue dCi 80 | P64: 17050 | Q64: =ROUND(P64*(1+$N$9),2) -> 19778 | R64: =ROUND(M64-P64,0) -> 3770 | S64: =ROUND(N64-Q64,0) -> 4373 | T64: Utility | U64: NFZ
L65: Renault Kangoo Z.E. 33 2-Sitzer (alle N1-Versionen) | M65: 29920 | N65: 34707.2 | O65: Renault Kangoo Rapid Blue dCi 80 | P65: 17050 | Q65: 19778 | R65: 12870 | S65: 14929 | T65: Utility | U65: NFZ
L66: Renault Kangoo Maxi Z.E. 33 mit Batteriemiete (alle N1-Versionen) | M66: 22020 | N66: 25543.2 | O66: Renault Kangoo Rapid Maxi Blue dCi 95 | P66: 19850 | Q66: 23026 | R66: 2170 | S66: 2517 | T66: Utility | U66: NFZ
L67: Renault Kangoo Maxi Z.E. 33 (alle N1-Versionen) | M67: 31120 | N67: 36099.2 | O67: Renault Kangoo Rapid Maxi Blue dCi 95 | P67: 19850 | Q67: 23026 | R67: 11270 | S67: 13073 | T67: Utility | U67: NFZ
L68: Renault Kangoo III E-Tech (alle N1-Versionen) | M68: 33990 | N68: =ROUND(M68*(1.19),2) -> 40448.1 | O68: Renault Kangoo Rapid III | P68: 20580 | Q68: =ROUND(P68*(1.19),2) -> 24490.2 | R68: =ROUND(M68-P68,0) -> 13410 | S68: =ROUND(N68-Q68,0) -> 15958 | T68: Utility | U68: NFZ | W68: 2023-01-23
L69: Renault Master Z.E. Kasten (alle N1/N2-Versionen) | M69: 64000 | N69: 74240 | O69: Renault Master Kasten | P69: 31990 | Q69: 37108.4 | R69: 32010 | S69: 37132 | T69: Utility | U69: NFZ | V69: Korrektur, da falsche Version verglichen, nun beides L2H2 | W69: 2020-08-10
L70: Renault Master Z.E. Plattform-FG (alle N1/N2-Versionen) | M70: 60850 | N70: 70586 | O70: Renault Master Plattform-FG | P70: 29590 | Q70: 34324.4 | R70: 31260 | S70: 36262 | T70: Utility | U70: NFZ | V70: Korrektur, da falsche Werte, beides L2H1 | W70: 2020-08-10
L71: Streetscooter Work 40 (alle N1-Versionen) | M71: 42750 | N71: 49590 | O71: Nissan NV200 Kasten | P71: 15350 | Q71: 17806 | R71: 27400 | S71: 31784 | T71: Utility | U71: NFZ
L72: Streetscooter Work L 40 (alle N1-Versionen) | M72: 47650 | N72: =ROUND(M72*(1+$N$9),2) -> 55274 | O72: Renault Master Ecoline L1H1 2,8 t | P72: 25220 | Q72: =ROUND(P72*(1+$N$9),2) -> 29255.2 | R72: =ROUND(M72-P72,0) -> 22430 | S72: =ROUND(N72-Q72,0) -> 26019 | T72: Utility | U72: NFZ
L73: Toyota Proace Electric 50 kWh (alle N1-Versionen) | M73: 36350 | N73: =ROUND(M73*1.19,2) -> 43256.5 | O73: Toyota Proace 88kW | P73: 27200 | Q73: =ROUND(P73*1.19,2) -> 32368 | R73: =ROUND(M73-P73,0) -> 9150 | S73: =ROUND(R73*1.19,2) -> 10888.5 | T73: Utility | U73: NFZ
L74: Toyota Proace Electric 75 kWh (alle N1-Versionen) | M74: 41350 | N74: =ROUND(M74*1.19,2) -> 49206.5 | O74: Toyota Proace 88kW | P74: 27200 | Q74: =ROUND(P74*1.19,2) -> 32368 | R74: =ROUND(M74-P74,0) -> 14150 | S74: =ROUND(R74*1.19,2) -> 16838.5 | T74: Utility | U74: NFZ
L75: Tropos Motors ABLE XT1 (13kWh) (alle N1-Versionen) | M75: 23000 | N75: =M75*1.19 -> 27370 | O75: Piaggio Porter - Entry Level Chassis | P75: 11071.43 | Q75: =ROUNDUP(P75*1.19,2) -> 13175.01 | R75: =ROUND(M75-P75,0) -> 11929 | S75: =ROUND(N75-Q75,0) -> 14195 | T75: Utility | U75: NFZ | W75: 2021-06-18
L76: Tropos Motors ABLE XT2 (26kWh) (alle N1-Versionen) | M76: 27000 | N76: =M76*1.19 -> 32130 | O76: Piaggio Porter - Entry Level Chassis | P76: 11071.43 | Q76: =ROUNDUP(P76*1.19,2) -> 13175.01 | R76: 15929 | S76: =ROUND(N76-Q76,0) -> 18955 | T76: Utility | U76: NFZ
L77: Volkswagen ABT e-Caddy (alle N1-Versionen) | M77: 31500 | N77: =ROUND(M77*1.19,2) -> 37485 | O77: Volkswagen Caddy Kombi 75 kW TDI | P77: 22910 | Q77: =ROUND(P77*1.19,2) -> 27262.9 | R77: =ROUND(M77-P77,0) -> 8590 | S77: 10222 | T77: Utility | U77: NFZ | W77: 2021-02-10
L78: Volkswagen ABT-e T6.1 Kasten (alle N1-Versionen) | O78: Elektrifizierungsumfang | R78: 25184 | S78: 29969 | T78: Utility | U78: NFZ
L79: Volkswagen e-Crafter 35 MR EM85 (alle N1/N2-Versionen) | M79: 53900 | N79: =ROUND(M79*(1+$N$9),2) -> 62524 | O79: Crafter 30/35 TL (75 kW) | P79: 31800 | Q79: =ROUND(P79*(1+$N$9),2) -> 36888 | R79: =ROUND(M79-P79,0) -> 22100 | S79: =ROUND(N79-Q79,0) -> 25636 | T79: Utility | U79: NFZ | V79: Radstand Mittellang mit Hochdach
L80: Volkswagen ID.Buzz Cargo 77kWh | M80: 45740 | N80: =ROUND(M80*(1.19),2) -> 54430.6 | O80: Caddy Cargo Maxi 2,0 TDI SCR | P80: 26840 | Q80: =ROUND(P80*1.19,2) -> 31939.6 | R80: 18900 | S80: 22491 | T80: Utility | U80: NFZ | W80: 2022-09-20
V83: Ergänzung bei Fahrzeugen der Sprinterklasse: "alle N1/N2-Versionen, für die 4,25t-Varianten | W83: 2020-09-09

Sheet N2, N3, Umrüstungen
A1: Ermittlung der förderfähigen Ausgaben (EfA) für die Fahrzeugklassen N2 und N3 sowie Umrüstungen | J1: =IF('Fahrzeugklasse N1, N2'!$J$1=0, " ","FKZ: 03EMIN"&'Fahrzeugklasse N1, N2'!$J$1) -> 
A2: Hinweise:
A3: Bitte legen Sie Ihrem Antrag für jeden hier aufgeführten Fahrzeugtyp entsprechende Angebote für das E-Fahrzeug und ein Referenzfahrzeug bei.
A4: Möchten Sie eine Umrüstung durchführen lassen, machen Sie bitte im Feld "Nettopreis Referenzfahrzeug" keine Eingabe.
A6: Pos. | B6: Typ E-Fahrzeug | C6: Nettopreis | D6: Typ Referenzfahrzeug | E6: Nettopreis Referenzfahrzeug | F6: Förderfähige Ausgaben pro Fahrzeug (netto) | G6: Anzahl zu beschaffender Fahrzeuge des Typs | H6: erwartete durchschnittliche Jahres-Fahrleistung in km* | I6: Förderfähige Ausgaben | J6: Korrekturfeld PtJ
A7: 1 | F7: =IF(B7>"",C7-E7,"") ->  | I7: =IF(B7>"",F7*G7,"") -> 
A9: 2 | F9: =IF(B9>"",C9-E9,"") ->  | I9: =IF(B9>"",F9*G9,"") -> 
A11: 3 | F11: =IF(B11>"",C11-E11,"") ->  | I11: =IF(B11>"",F11*G11,"") -> 
A13: 4 | F13: =IF(B13>"",C13-E13,"") ->  | I13: =IF(B13>"",F13*G13,"") -> 
A15: 5 | F15: =IF(B15>"",C15-E15,"") ->  | I15: =IF(B15>"",F15*G15,"") -> 
A17: 6 | F17: =IF(B17>"",C17-E17,"") ->  | I17: =IF(B17>"",F17*G17,"") -> 
A19: 7 | F19: =IF(B19>"",C19-E19,"") ->  | I19: =IF(B19>"",F19*G19,"") -> 
A21: 8 | F21: =IF(B21>"",C21-E21,"") ->  | I21: =IF(B21>"",F21*G21,"") -> 
A23: 9 | F23: =IF(B23>"",C23-E23,"") ->  | I23: =IF(B23>"",F23*G23,"") -> 
A25: 10 | F25: =IF(B25>"",C25-E25,"") ->  | I25: =IF(B25>"",F25*G25,"") -> 
A27: Summe | I27: =SUM(I7:I25) -> 0

Sheet Ladeinfrastruktur
A1: Ermittlung der förderfähigen Ausgaben (EfA) - Pauschalen für Ladeinfrastruktur | F1: =IF('Fahrzeugklasse N1, N2'!$J$1=0, " ","FKZ: 03EMIN"&'Fahrzeugklasse N1, N2'!$J$1) -> 
A3: Bitte wählen Sie die gewünschte Ladeinfrastruktur. Für diese brauchen Sie keine Angebote einreichen.
A5: Pos. | B5: Typ Ladeinfrastruktur (LIS)* [Auswahlbox] | C5: Förderfähige Ausgaben pro Ladesäule (netto) | D5: Anzahl zu beschaffender Ladesäulen des Typs | E5: Förderfähige Ausgaben | F5: Korrekturfeld PtJ | I5: Typ Ladeinfrastruktur | J5: Ausgabenpauschale netto | K5: Ausgabenpauschale brutto
A6: 1 | C6: =IF($B6>0,VLOOKUP($B6,$I$6:$K$12,2,0),"") ->  | E6: =IF(AND(B6<>"",D6>0),C6*D6,"") ->  | I6: Mobile Ladestationen [AC] ab 3,7 kW (1 Ladepunkt) | J6: 500 | K6: =J6*1.19 -> 595
I7: nicht öff. zugängl. [AC] ab 3,7 kW (1 Ladepunkt) | J7: 600 | K7: 714
A8: 2 | C8: =IF($B8>0,VLOOKUP($B8,$I$6:$K$12,2,0),"") ->  | E8: =IF(AND(B8<>"",D8>0),C8*D8,"") ->  | I8: nicht öff. zugängl. [AC] ab 11 kW (min. 2 Ladepunkte) | J8: 3000 | K8: 3570
I9: nicht öff. zugängl. [DC] bis 25 kW | J9: 10000 | K9: 11900
A10: 3 | C10: =IF($B10>0,VLOOKUP($B10,$I$6:$K$12,2,0),"") ->  | E10: =IF(AND(B10<>"",D10>0),C10*D10,"") ->  | I10: nicht öff. zugängl. [DC] 25-50 kW | J10: 20000 | K10: 23800
I11: nicht öff. zugängl. [DC] 51-149 kW | J11: 35000 | K11: 41650
A12: 4 | C12: =IF($B12>0,VLOOKUP($B12,$I$6:$K$12,2,0),"") ->  | E12: =IF(AND(B12<>"",D12>0),C12*D12,"") ->  | I12: nicht öff. zugängl. [DC] ab 150 kW | J12: 50000 | K12: 59500
A14: 5 | C14: =IF($B14>0,VLOOKUP($B14,$I$6:$K$12,2,0),"") ->  | E14: =IF(AND(B14<>"",D14>0),C14*D14,"") -> 
A16: 6 | C16: =IF($B16>0,VLOOKUP($B16,$I$6:$K$12,2,0),"") ->  | E16: =IF(AND(B16<>"",D16>0),C16*D16,"") -> 
A18: 7 | C18: =IF($B18>0,VLOOKUP($B18,$I$6:$K$12,2,0),"") ->  | E18: =IF(AND(B18<>"",D18>0),C18*D18,"") -> 
A20: 8 | C20: =IF($B20>0,VLOOKUP($B20,$I$6:$K$12,2,0),"") ->  | E20: =IF(AND(B20<>"",D20>0),C20*D20,"") -> 
A22: 9 | C22: =IF($B22>0,VLOOKUP($B22,$I$6:$K$12,2,0),"") ->  | E22: =IF(AND(B22<>"",D22>0),C22*D22,"") -> 
A24: 10 | C24: =IF($B24>0,VLOOKUP($B24,$I$6:$K$12,2,0),"") ->  | E24: =IF(AND(B24<>"",D24>0),C24*D24,"") -> 
A26: Summe | E26: =SUM(E6:E24) -> 0
A28: * DC : | B28: Gleichstrom-Ladeinfrastruktur
A29: * AC : | B29: Wechselstrom-Ladeinfrastruktur

Sheet spezielle Ladeinfrastruktur
A1: Ermittlung der förderfähigen Ausgaben für Ladeinfrastruktur, die nicht in der Registerkarte "Ladeinfrastruktur" aufgeführt wird | F1: =IF('Fahrzeugklasse N1, N2'!$J$1=0, " ","FKZ: 03EMIN"&'Fahrzeugklasse N1, N2'!$J$1) -> 
A2: Hinweise:
A3: Hierfür müssen Sie entsprechende Angebote für die Ladeinfrastruktur eingeholt haben. Diese Angebote sind beizufügen.
A6: Pos. | B6: Typ Ladeinfrastruktur (LIS) | C6: Nettopreis LIS laut beigefügtem Angebot | D6: Anzahl zu beschaffender LIS dieses Typs | E6: Förderfähige Ausgaben | F6: Korrekturfeld PtJ
A7: 1 | E7: =IF(AND(B7<>"",C7>0),D7*C7,"") -> 
A9: 2 | E9: =IF(AND(B9<>"",C9>0),D9*C9,"") -> 
A11: 3 | E11: =IF(AND(B11<>"",C11>0),D11*C11,"") -> 
A13: 4 | E13: =IF(AND(B13<>"",C13>0),D13*C13,"") -> 
A15: 5 | E15: =IF(AND(B15<>"",C15>0),D15*C15,"") -> 
A17: 6 | E17: =IF(AND(B17<>"",C17>0),D17*C17,"") -> 
A19: 7 | E19: =IF(AND(B19<>"",C19>0),D19*C19,"") -> 
A21: 8 | E21: =IF(AND(B21<>"",C21>0),D21*C21,"") -> 
A23: 9 | E23: =IF(AND(B23<>"",C23>0),D23*C23,"") -> 
A25: 10 | E25: =IF(AND(B25<>"",C25>0),D25*C25,"") -> 
A27: Summe | E27: =SUM(E7:E26) -> 0

Sheet Vorlage für AZA
A1: Hinweis: | E1: =IF('Fahrzeugklasse N1, N2'!$J$1=0, " ","FKZ: 03EMIN"&'Fahrzeugklasse N1, N2'!$J$1) -> 
A2: Vorlage zum Übertragen der Daten aus dieser Tabelle in den AZA-Antrag in easy-Online.
A3: Bitte kopieren Sie die Bezeichung wie hier dargestellt in das easy-Online-Formular (Bezeichnungen werden z.T. abgeschnitten).
A4: Die Anzahl der zu beschaffenden Fahrzeuge/ Ladeinfrastruktur muss ggf. auf die Anschaffungsjahre aufgeteilt werden.
A5: Beachten Sie, dass die hier angegebene Summe mit den Gesamtmitteln im easy-Online-Antrag überein stimmen muss.
A6: Ignorieren Sie die Warnmeldung bei Eintragung von Beträgen <800€!
A7: Gesamtfinanzierung - Gegenstände und andere Investitionen von mehr als 410 € im Einzelfall
A9: lfd. Nr. | B9: Bezeichnung | C9: Zuwendungsfähige Ausgaben / Stück | D9: Anzahl | E9: F0833 Betrag €
A10: =IF('Fahrzeugklasse N1, N2'!$B11>"",'Fahrzeugklasse N1, N2'!A11,0) -> 0 | B10: =IF('Fahrzeugklasse N1, N2'!$B11>"",CONCATENATE('Fahrzeugklasse N1, N2'!U34," ",'Fahrzeugklasse N1, N2'!B11),"") ->  | C10: =IF('Fahrzeugklasse N1, N2'!$B11>"",'Fahrzeugklasse N1, N2'!$F11,"") ->  | D10: =IF('Fahrzeugklasse N1, N2'!$B11>"",'Fahrzeugklasse N1, N2'!G11,"") ->  | E10: =IF('Fahrzeugklasse N1, N2'!$B11>"",'Fahrzeugklasse N1, N2'!I11,"") -> 
A11: =IF('Fahrzeugklasse N1, N2'!B12>"",'Fahrzeugklasse N1, N2'!A12,A10) -> 0 | B11: =IF('Fahrzeugklasse N1, N2'!$B12>"",CONCATENATE('Fahrzeugklasse N1, N2'!U47," ",'Fahrzeugklasse N1, N2'!B12),"") ->  | C11: =IF('Fahrzeugklasse N1, N2'!$B12>"",'Fahrzeugklasse N1, N2'!$F12,"") ->  | D11: =IF('Fahrzeugklasse N1, N2'!$B12>"",'Fahrzeugklasse N1, N2'!G12,"") ->  | E11: =IF('Fahrzeugklasse N1, N2'!$B12>"",'Fahrzeugklasse N1, N2'!I12,"") -> 
A12: =IF('Fahrzeugklasse N1, N2'!B13>"",'Fahrzeugklasse N1, N2'!A13,A11) -> 0 | B12: =IF('Fahrzeugklasse N1, N2'!$B13>"",CONCATENATE('Fahrzeugklasse N1, N2'!U48," ",'Fahrzeugklasse N1, N2'!B13),"") ->  | C12: =IF('Fahrzeugklasse N1, N2'!$B13>"",'Fahrzeugklasse N1, N2'!$F13,"") ->  | D12: =IF('Fahrzeugklasse N1, N2'!$B13>"",'Fahrzeugklasse N1, N2'!G13,"") ->  | E12: =IF('Fahrzeugklasse N1, N2'!$B13>"",'Fahrzeugklasse N1, N2'!I13,"") -> 
A13: =IF('Fahrzeugklasse N1, N2'!B14>"",'Fahrzeugklasse N1, N2'!A14,A12) -> 0 | B13: =IF('Fahrzeugklasse N1, N2'!$B14>"",CONCATENATE('Fahrzeugklasse N1, N2'!U53," ",'Fahrzeugklasse N1, N2'!B14),"") ->  | C13: =IF('Fahrzeugklasse N1, N2'!$B14>"",'Fahrzeugklasse N1, N2'!$F14,"") ->  | D13: =IF('Fahrzeugklasse N1, N2'!$B14>"",'Fahrzeugklasse N1, N2'!G14,"") ->  | E13: =IF('Fahrzeugklasse N1, N2'!$B14>"",'Fahrzeugklasse N1, N2'!I14,"") -> 
A14: =IF('Fahrzeugklasse N1, N2'!B15>"",'Fahrzeugklasse N1, N2'!A15,A13) -> 0 | B14: =IF('Fahrzeugklasse N1, N2'!$B15>"",CONCATENATE('Fahrzeugklasse N1, N2'!U56," ",'Fahrzeugklasse N1, N2'!B15),"") ->  | C14: =IF('Fahrzeugklasse N1, N2'!$B15>"",'Fahrzeugklasse N1, N2'!$F15,"") ->  | D14: =IF('Fahrzeugklasse N1, N2'!$B15>"",'Fahrzeugklasse N1, N2'!G15,"") ->  | E14: =IF('Fahrzeugklasse N1, N2'!$B15>"",'Fahrzeugklasse N1, N2'!I15,"") -> 
A15: =IF('Fahrzeugklasse N1, N2'!B16>"",'Fahrzeugklasse N1, N2'!A16,A14) -> 0 | B15: =IF('Fahrzeugklasse N1, N2'!$B16>"",CONCATENATE('Fahrzeugklasse N1, N2'!U60," ",'Fahrzeugklasse N1, N2'!B16),"") ->  | C15: =IF('Fahrzeugklasse N1, N2'!$B16>"",'Fahrzeugklasse N1, N2'!$F16,"") ->  | D15: =IF('Fahrzeugklasse N1, N2'!$B16>"",'Fahrzeugklasse N1, N2'!G16,"") ->  | E15: =IF('Fahrzeugklasse N1, N2'!$B16>"",'Fahrzeugklasse N1, N2'!I16,"") -> 
A16: =IF('Fahrzeugklasse N1, N2'!B17>"",'Fahrzeugklasse N1, N2'!A17,A15) -> 0 | B16: =IF('Fahrzeugklasse N1, N2'!$B17>"",CONCATENATE('Fahrzeugklasse N1, N2'!U61," ",'Fahrzeugklasse N1, N2'!B17),"") ->  | C16: =IF('Fahrzeugklasse N1, N2'!$B17>"",'Fahrzeugklasse N1, N2'!$F17,"") ->  | D16: =IF('Fahrzeugklasse N1, N2'!$B17>"",'Fahrzeugklasse N1, N2'!G17,"") ->  | E16: =IF('Fahrzeugklasse N1, N2'!$B17>"",'Fahrzeugklasse N1, N2'!I17,"") -> 
A17: =IF('Fahrzeugklasse N1, N2'!B18>"",'Fahrzeugklasse N1, N2'!A18,A16) -> 0 | B17: =IF('Fahrzeugklasse N1, N2'!$B18>"",CONCATENATE('Fahrzeugklasse N1, N2'!U62," ",'Fahrzeugklasse N1, N2'!B18),"") ->  | C17: =IF('Fahrzeugklasse N1, N2'!$B18>"",'Fahrzeugklasse N1, N2'!$F18,"") ->  | D17: =IF('Fahrzeugklasse N1, N2'!$B18>"",'Fahrzeugklasse N1, N2'!G18,"") ->  | E17: =IF('Fahrzeugklasse N1, N2'!$B18>"",'Fahrzeugklasse N1, N2'!I18,"") -> 
A18: =IF('Fahrzeugklasse N1, N2'!B19>"",'Fahrzeugklasse N1, N2'!A19,A17) -> 0 | B18: =IF('Fahrzeugklasse N1, N2'!$B19>"",CONCATENATE('Fahrzeugklasse N1, N2'!U64," ",'Fahrzeugklasse N1, N2'!B19),"") ->  | C18: =IF('Fahrzeugklasse N1, N2'!$B19>"",'Fahrzeugklasse N1, N2'!$F19,"") ->  | D18: =IF('Fahrzeugklasse N1, N2'!$B19>"",'Fahrzeugklasse N1, N2'!G19,"") ->  | E18: =IF('Fahrzeugklasse N1, N2'!$B19>"",'Fahrzeugklasse N1, N2'!I19,"") -> 
A19: =IF('Fahrzeugklasse N1, N2'!B20>"",'Fahrzeugklasse N1, N2'!A20,A18) -> 0 | B19: =IF('Fahrzeugklasse N1, N2'!$B20>"",CONCATENATE('Fahrzeugklasse N1, N2'!U64," ",'Fahrzeugklasse N1, N2'!B20),"") ->  | C19: =IF('Fahrzeugklasse N1, N2'!$B20>"",'Fahrzeugklasse N1, N2'!$F20,"") ->  | D19: =IF('Fahrzeugklasse N1, N2'!$B20>"",'Fahrzeugklasse N1, N2'!G20,"") ->  | E19: =IF('Fahrzeugklasse N1, N2'!$B20>"",'Fahrzeugklasse N1, N2'!I20,"") -> 
A20: =IF('Fahrzeugklasse N1, N2'!B21>"",'Fahrzeugklasse N1, N2'!A21,A19) -> 0 | B20: =IF('Fahrzeugklasse N1, N2'!$B21>"",CONCATENATE('Fahrzeugklasse N1, N2'!U65," ",'Fahrzeugklasse N1, N2'!B21),"") ->  | C20: =IF('Fahrzeugklasse N1, N2'!$B21>"",'Fahrzeugklasse N1, N2'!$F21,"") ->  | D20: =IF('Fahrzeugklasse N1, N2'!$B21>"",'Fahrzeugklasse N1, N2'!G21,"") ->  | E20: =IF('Fahrzeugklasse N1, N2'!$B21>"",'Fahrzeugklasse N1, N2'!I21,"") -> 
A21: =IF('Fahrzeugklasse N1, N2'!B22>"",'Fahrzeugklasse N1, N2'!A22,A20) -> 0 | B21: =IF('Fahrzeugklasse N1, N2'!$B22>"",CONCATENATE('Fahrzeugklasse N1, N2'!U66," ",'Fahrzeugklasse N1, N2'!B22),"") ->  | C21: =IF('Fahrzeugklasse N1, N2'!$B22>"",'Fahrzeugklasse N1, N2'!$F22,"") ->  | D21: =IF('Fahrzeugklasse N1, N2'!$B22>"",'Fahrzeugklasse N1, N2'!G22,"") ->  | E21: =IF('Fahrzeugklasse N1, N2'!$B22>"",'Fahrzeugklasse N1, N2'!I22,"") -> 
A22: =IF('Fahrzeugklasse N1, N2'!B23>"",'Fahrzeugklasse N1, N2'!A23,A21) -> 0 | B22: =IF('Fahrzeugklasse N1, N2'!$B23>"",CONCATENATE('Fahrzeugklasse N1, N2'!U67," ",'Fahrzeugklasse N1, N2'!B23),"") ->  | C22: =IF('Fahrzeugklasse N1, N2'!$B23>"",'Fahrzeugklasse N1, N2'!$F23,"") ->  | D22: =IF('Fahrzeugklasse N1, N2'!$B23>"",'Fahrzeugklasse N1, N2'!G23,"") ->  | E22: =IF('Fahrzeugklasse N1, N2'!$B23>"",'Fahrzeugklasse N1, N2'!I23,"") -> 
A23: =IF('Fahrzeugklasse N1, N2'!B24>"",'Fahrzeugklasse N1, N2'!A24,A22) -> 0 | B23: =IF('Fahrzeugklasse N1, N2'!$B24>"",CONCATENATE('Fahrzeugklasse N1, N2'!U69," ",'Fahrzeugklasse N1, N2'!B24),"") ->  | C23: =IF('Fahrzeugklasse N1, N2'!$B24>"",'Fahrzeugklasse N1, N2'!$F24,"") ->  | D23: =IF('Fahrzeugklasse N1, N2'!$B24>"",'Fahrzeugklasse N1, N2'!G24,"") ->  | E23: =IF('Fahrzeugklasse N1, N2'!$B24>"",'Fahrzeugklasse N1, N2'!I24,"") -> 
A24: =IF('Fahrzeugklasse N1, N2'!B25>"",'Fahrzeugklasse N1, N2'!A25,A23) -> 0 | B24: =IF('Fahrzeugklasse N1, N2'!$B25>"",CONCATENATE('Fahrzeugklasse N1, N2'!U70," ",'Fahrzeugklasse N1, N2'!B25),"") ->  | C24: =IF('Fahrzeugklasse N1, N2'!$B25>"",'Fahrzeugklasse N1, N2'!$F25,"") ->  | D24: =IF('Fahrzeugklasse N1, N2'!$B25>"",'Fahrzeugklasse N1, N2'!G25,"") ->  | E24: =IF('Fahrzeugklasse N1, N2'!$B25>"",'Fahrzeugklasse N1, N2'!I25,"") -> 
A25: =IF('Fahrzeugklasse N1, N2'!B26>"",'Fahrzeugklasse N1, N2'!A26,A24) -> 0 | B25: =IF('Fahrzeugklasse N1, N2'!$B26>"",CONCATENATE('Fahrzeugklasse N1, N2'!U71," ",'Fahrzeugklasse N1, N2'!B26),"") ->  | C25: =IF('Fahrzeugklasse N1, N2'!$B26>"",'Fahrzeugklasse N1, N2'!$F26,"") ->  | D25: =IF('Fahrzeugklasse N1, N2'!$B26>"",'Fahrzeugklasse N1, N2'!G26,"") ->  | E25: =IF('Fahrzeugklasse N1, N2'!$B26>"",'Fahrzeugklasse N1, N2'!I26,"") -> 
A26: =IF('Fahrzeugklasse N1, N2'!B27>"",'Fahrzeugklasse N1, N2'!A27,A25) -> 0 | B26: =IF('Fahrzeugklasse N1, N2'!$B27>"",CONCATENATE('Fahrzeugklasse N1, N2'!U78," ",'Fahrzeugklasse N1, N2'!B27),"") ->  | C26: =IF('Fahrzeugklasse N1, N2'!$B27>"",'Fahrzeugklasse N1, N2'!$F27,"") ->  | D26: =IF('Fahrzeugklasse N1, N2'!$B27>"",'Fahrzeugklasse N1, N2'!G27,"") ->  | E26: =IF('Fahrzeugklasse N1, N2'!$B27>"",'Fahrzeugklasse N1, N2'!I27,"") -> 
A27: =IF('Fahrzeugklasse N1, N2'!B28>"",'Fahrzeugklasse N1, N2'!A28,A26) -> 0 | B27: =IF('Fahrzeugklasse N1, N2'!$B28>"",CONCATENATE('Fahrzeugklasse N1, N2'!U80," ",'Fahrzeugklasse N1, N2'!B28),"") ->  | C27: =IF('Fahrzeugklasse N1, N2'!$B28>"",'Fahrzeugklasse N1, N2'!$F28,"") ->  | D27: =IF('Fahrzeugklasse N1, N2'!$B28>"",'Fahrzeugklasse N1, N2'!G28,"") ->  | E27: =IF('Fahrzeugklasse N1, N2'!$B28>"",'Fahrzeugklasse N1, N2'!I28,"") -> 
A28: =IF('Fahrzeugklasse N1, N2'!B29>"",'Fahrzeugklasse N1, N2'!A29,A27) -> 0 | B28: =IF('Fahrzeugklasse N1, N2'!$B29>"",CONCATENATE('Fahrzeugklasse N1, N2'!U81," ",'Fahrzeugklasse N1, N2'!B29),"") ->  | C28: =IF('Fahrzeugklasse N1, N2'!$B29>"",'Fahrzeugklasse N1, N2'!$F29,"") ->  | D28: =IF('Fahrzeugklasse N1, N2'!$B29>"",'Fahrzeugklasse N1, N2'!G29,"") ->  | E28: =IF('Fahrzeugklasse N1, N2'!$B29>"",'Fahrzeugklasse N1, N2'!I29,"") -> 
A29: =IF('Fahrzeugklasse N1, N2'!B30>"",'Fahrzeugklasse N1, N2'!A30,A28) -> 0 | B29: =IF('Fahrzeugklasse N1, N2'!$B30>"",CONCATENATE('Fahrzeugklasse N1, N2'!U82," ",'Fahrzeugklasse N1, N2'!B30),"") ->  | C29: =IF('Fahrzeugklasse N1, N2'!$B30>"",'Fahrzeugklasse N1, N2'!$F30,"") ->  | D29: =IF('Fahrzeugklasse N1, N2'!$B30>"",'Fahrzeugklasse N1, N2'!G30,"") ->  | E29: =IF('Fahrzeugklasse N1, N2'!$B30>"",'Fahrzeugklasse N1, N2'!I30,"") -> 
A30: =IF('N2, N3, Umrüstungen'!B7>"",A29+1,A29) -> 0 | B30: =IF('N2, N3, Umrüstungen'!$B7>"",CONCATENATE("LKW ",'N2, N3, Umrüstungen'!$B7),"") ->  | C30: =IF('N2, N3, Umrüstungen'!$B7>"",'N2, N3, Umrüstungen'!F7,"") ->  | D30: =IF('N2, N3, Umrüstungen'!$B7>"",'N2, N3, Umrüstungen'!G7,"") ->  | E30: =IF('N2, N3, Umrüstungen'!$B7>"",'N2, N3, Umrüstungen'!I7,"") -> 
A31: =IF('N2, N3, Umrüstungen'!B9>"",A30+1,A30) -> 0 | B31: =IF('N2, N3, Umrüstungen'!$B9>"",CONCATENATE("LKW ",'N2, N3, Umrüstungen'!$B9),"") ->  | C31: =IF('N2, N3, Umrüstungen'!$B9>"",'N2, N3, Umrüstungen'!F9,"") ->  | D31: =IF('N2, N3, Umrüstungen'!$B9>"",'N2, N3, Umrüstungen'!G9,"") ->  | E31: =IF('N2, N3, Umrüstungen'!$B9>"",'N2, N3, Umrüstungen'!I9,"") -> 
A32: =IF('N2, N3, Umrüstungen'!B11>"",A31+1,A31) -> 0 | B32: =IF('N2, N3, Umrüstungen'!$B11>"",CONCATENATE("LKW ",'N2, N3, Umrüstungen'!$B11),"") ->  | C32: =IF('N2, N3, Umrüstungen'!$B11>"",'N2, N3, Umrüstungen'!F11,"") ->  | D32: =IF('N2, N3, Umrüstungen'!$B11>"",'N2, N3, Umrüstungen'!G11,"") ->  | E32: =IF('N2, N3, Umrüstungen'!$B11>"",'N2, N3, Umrüstungen'!I11,"") -> 
A33: =IF('N2, N3, Umrüstungen'!B13>"",A32+1,A32) -> 0 | B33: =IF('N2, N3, Umrüstungen'!$B13>"",CONCATENATE("LKW ",'N2, N3, Umrüstungen'!$B13),"") ->  | C33: =IF('N2, N3, Umrüstungen'!$B13>"",'N2, N3, Umrüstungen'!F13,"") ->  | D33: =IF('N2, N3, Umrüstungen'!$B13>"",'N2, N3, Umrüstungen'!G13,"") ->  | E33: =IF('N2, N3, Umrüstungen'!$B13>"",'N2, N3, Umrüstungen'!I13,"") -> 
A34: =IF('N2, N3, Umrüstungen'!B15>"",A33+1,A33) -> 0 | B34: =IF('N2, N3, Umrüstungen'!$B15>"",CONCATENATE("LKW ",'N2, N3, Umrüstungen'!$B15),"") ->  | C34: =IF('N2, N3, Umrüstungen'!$B15>"",'N2, N3, Umrüstungen'!F15,"") ->  | D34: =IF('N2, N3, Umrüstungen'!$B15>"",'N2, N3, Umrüstungen'!G15,"") ->  | E34: =IF('N2, N3, Umrüstungen'!$B15>"",'N2, N3, Umrüstungen'!I15,"") -> 
A35: =IF('N2, N3, Umrüstungen'!B17>"",A34+1,A34) -> 0 | B35: =IF('N2, N3, Umrüstungen'!$B17>"",CONCATENATE("LKW ",'N2, N3, Umrüstungen'!$B17),"") ->  | C35: =IF('N2, N3, Umrüstungen'!$B17>"",'N2, N3, Umrüstungen'!F17,"") ->  | D35: =IF('N2, N3, Umrüstungen'!$B17>"",'N2, N3, Umrüstungen'!G17,"") ->  | E35: =IF('N2, N3, Umrüstungen'!$B17>"",'N2, N3, Umrüstungen'!I17,"") -> 
A36: =IF('N2, N3, Umrüstungen'!B19>"",A35+1,A35) -> 0 | B36: =IF('N2, N3, Umrüstungen'!$B19>"",CONCATENATE("LKW ",'N2, N3, Umrüstungen'!$B19),"") ->  | C36: =IF('N2, N3, Umrüstungen'!$B19>"",'N2, N3, Umrüstungen'!F19,"") ->  | D36: =IF('N2, N3, Umrüstungen'!$B19>"",'N2, N3, Umrüstungen'!G19,"") ->  | E36: =IF('N2, N3, Umrüstungen'!$B19>"",'N2, N3, Umrüstungen'!I19,"") -> 
A37: =IF('N2, N3, Umrüstungen'!B21>"",A36+1,A36) -> 0 | B37: =IF('N2, N3, Umrüstungen'!$B21>"",CONCATENATE("LKW ",'N2, N3, Umrüstungen'!$B21),"") ->  | C37: =IF('N2, N3, Umrüstungen'!$B21>"",'N2, N3, Umrüstungen'!F21,"") ->  | D37: =IF('N2, N3, Umrüstungen'!$B21>"",'N2, N3, Umrüstungen'!G21,"") ->  | E37: =IF('N2, N3, Umrüstungen'!$B21>"",'N2, N3, Umrüstungen'!I21,"") -> 
A38: =IF('N2, N3, Umrüstungen'!B23>"",A37+1,A37) -> 0 | B38: =IF('N2, N3, Umrüstungen'!$B23>"",CONCATENATE("LKW ",'N2, N3, Umrüstungen'!$B23),"") ->  | C38: =IF('N2, N3, Umrüstungen'!$B23>"",'N2, N3, Umrüstungen'!F23,"") ->  | D38: =IF('N2, N3, Umrüstungen'!$B23>"",'N2, N3, Umrüstungen'!G23,"") ->  | E38: =IF('N2, N3, Umrüstungen'!$B23>"",'N2, N3, Umrüstungen'!I23,"") -> 
A39: =IF('N2, N3, Umrüstungen'!B25>"",A38+1,A38) -> 0 | B39: =IF('N2, N3, Umrüstungen'!$B25>"",CONCATENATE("LKW ",'N2, N3, Umrüstungen'!$B25),"") ->  | C39: =IF('N2, N3, Umrüstungen'!$B25>"",'N2, N3, Umrüstungen'!F25,"") ->  | D39: =IF('N2, N3, Umrüstungen'!$B25>"",'N2, N3, Umrüstungen'!G25,"") ->  | E39: =IF('N2, N3, Umrüstungen'!$B25>"",'N2, N3, Umrüstungen'!I25,"") -> 
A40: =IF(Ladeinfrastruktur!$B6>"",A39+1,A39) -> 0 | B40: =IF(Ladeinfrastruktur!$B6>"",CONCATENATE(" LIS ",Ladeinfrastruktur!B6),"") ->  | C40: =IF($B40>"",Ladeinfrastruktur!C6,"") ->  | D40: =IF($B40>"",Ladeinfrastruktur!D6,"") ->  | E40: =IF($B40>"",Ladeinfrastruktur!E6,"") -> 
A41: =IF(Ladeinfrastruktur!$B8>"",A40+1,A40) -> 0 | B41: =IF(Ladeinfrastruktur!$B8>"",CONCATENATE(" LIS ",Ladeinfrastruktur!B8),"") ->  | C41: =IF($B41>"",Ladeinfrastruktur!C8,"") ->  | D41: =IF($B41>"",Ladeinfrastruktur!D8,"") ->  | E41: =IF($B41>"",Ladeinfrastruktur!E8,"") -> 
A42: =IF(Ladeinfrastruktur!$B10>"",A41+1,A41) -> 0 | B42: =IF(Ladeinfrastruktur!$B10>"",CONCATENATE(" LIS ",Ladeinfrastruktur!B10),"") ->  | C42: =IF($B42>"",Ladeinfrastruktur!C10,"") ->  | D42: =IF($B42>"",Ladeinfrastruktur!D10,"") ->  | E42: =IF($B42>"",Ladeinfrastruktur!E10,"") -> 
A43: =IF(Ladeinfrastruktur!$B12>"",A42+1,A42) -> 0 | B43: =IF(Ladeinfrastruktur!$B12>"",CONCATENATE(" LIS ",Ladeinfrastruktur!B12),"") ->  | C43: =IF($B43>"",Ladeinfrastruktur!C12,"") ->  | D43: =IF($B43>"",Ladeinfrastruktur!D12,"") ->  | E43: =IF($B43>"",Ladeinfrastruktur!E12,"") -> 
A44: =IF(Ladeinfrastruktur!$B14>"",A43+1,A43) -> 0 | B44: =IF(Ladeinfrastruktur!$B14>"",CONCATENATE(" LIS ",Ladeinfrastruktur!B14),"") ->  | C44: =IF($B44>"",Ladeinfrastruktur!C14,"") ->  | D44: =IF($B44>"",Ladeinfrastruktur!D14,"") ->  | E44: =IF($B44>"",Ladeinfrastruktur!E14,"") -> 
A45: =IF(Ladeinfrastruktur!$B16>"",A44+1,A44) -> 0 | B45: =IF(Ladeinfrastruktur!$B16>"",CONCATENATE(" LIS ",Ladeinfrastruktur!B16),"") ->  | C45: =IF($B45>"",Ladeinfrastruktur!C16,"") ->  | D45: =IF($B45>"",Ladeinfrastruktur!D16,"") ->  | E45: =IF($B45>"",Ladeinfrastruktur!E16,"") -> 
A46: =IF(Ladeinfrastruktur!$B18>"",A45+1,A45) -> 0 | B46: =IF(Ladeinfrastruktur!$B18>"",CONCATENATE(" LIS ",Ladeinfrastruktur!B18),"") ->  | C46: =IF($B46>"",Ladeinfrastruktur!C18,"") ->  | D46: =IF($B46>"",Ladeinfrastruktur!D18,"") ->  | E46: =IF($B46>"",Ladeinfrastruktur!E18,"") -> 
A47: =IF(Ladeinfrastruktur!$B20>"",A46+1,A46) -> 0 | B47: =IF(Ladeinfrastruktur!$B20>"",CONCATENATE(" LIS ",Ladeinfrastruktur!B20),"") ->  | C47: =IF($B47>"",Ladeinfrastruktur!C20,"") ->  | D47: =IF($B47>"",Ladeinfrastruktur!D20,"") ->  | E47: =IF($B47>"",Ladeinfrastruktur!E20,"") -> 
A48: =IF(Ladeinfrastruktur!$B22>"",A47+1,A47) -> 0 | B48: =IF(Ladeinfrastruktur!$B22>"",CONCATENATE(" LIS ",Ladeinfrastruktur!B22),"") ->  | C48: =IF($B48>"",Ladeinfrastruktur!C22,"") ->  | D48: =IF($B48>"",Ladeinfrastruktur!D22,"") ->  | E48: =IF($B48>"",Ladeinfrastruktur!E22,"") -> 
A49: =IF(Ladeinfrastruktur!$B24>"",A48+1,A48) -> 0 | B49: =IF(Ladeinfrastruktur!$B24>"",CONCATENATE(" LIS ",Ladeinfrastruktur!B24),"") ->  | C49: =IF($B49>"",Ladeinfrastruktur!C24,"") ->  | D49: =IF($B49>"",Ladeinfrastruktur!D24,"") ->  | E49: =IF($B49>"",Ladeinfrastruktur!E24,"") -> 
A50: =IF('spezielle Ladeinfrastruktur'!$B7>"",A49+1,A49) -> 0 | B50: =IF('spezielle Ladeinfrastruktur'!B7>"",CONCATENATE(" LIS ",'spezielle Ladeinfrastruktur'!B7),"") ->  | C50: =IF('spezielle Ladeinfrastruktur'!$B7>"",'spezielle Ladeinfrastruktur'!C7,"") ->  | D50: =IF('spezielle Ladeinfrastruktur'!$B7>"",'spezielle Ladeinfrastruktur'!D7,"") ->  | E50: =IF('spezielle Ladeinfrastruktur'!$B7>"",'spezielle Ladeinfrastruktur'!E7,"") -> 
A51: =IF('spezielle Ladeinfrastruktur'!$B9>"",A50+1,A50) -> 0 | B51: =IF('spezielle Ladeinfrastruktur'!B9>"",CONCATENATE(" LIS ",'spezielle Ladeinfrastruktur'!B9),"") ->  | C51: =IF('spezielle Ladeinfrastruktur'!$B9>"",'spezielle Ladeinfrastruktur'!C9,"") ->  | D51: =IF('spezielle Ladeinfrastruktur'!$B9>"",'spezielle Ladeinfrastruktur'!D9,"") ->  | E51: =IF('spezielle Ladeinfrastruktur'!$B9>"",'spezielle Ladeinfrastruktur'!E9,"") -> 
A52: =IF('spezielle Ladeinfrastruktur'!$B11>"",A51+1,A51) -> 0 | B52: =IF('spezielle Ladeinfrastruktur'!B11>"",CONCATENATE(" LIS ",'spezielle Ladeinfrastruktur'!B11),"") ->  | C52: =IF('spezielle Ladeinfrastruktur'!$B11>"",'spezielle Ladeinfrastruktur'!C11,"") ->  | D52: =IF('spezielle Ladeinfrastruktur'!$B11>"",'spezielle Ladeinfrastruktur'!D11,"") ->  | E52: =IF('spezielle Ladeinfrastruktur'!$B11>"",'spezielle Ladeinfrastruktur'!E11,"") -> 
A53: =IF('spezielle Ladeinfrastruktur'!$B13>"",A52+1,A52) -> 0 | B53: =IF('spezielle Ladeinfrastruktur'!B13>"",CONCATENATE(" LIS ",'spezielle Ladeinfrastruktur'!B13),"") ->  | C53: =IF('spezielle Ladeinfrastruktur'!$B13>"",'spezielle Ladeinfrastruktur'!C13,"") ->  | D53: =IF('spezielle Ladeinfrastruktur'!$B13>"",'spezielle Ladeinfrastruktur'!D13,"") ->  | E53: =IF('spezielle Ladeinfrastruktur'!$B13>"",'spezielle Ladeinfrastruktur'!E13,"") -> 
A54: =IF('spezielle Ladeinfrastruktur'!$B15>"",A53+1,A53) -> 0 | B54: =IF('spezielle Ladeinfrastruktur'!B15>"",CONCATENATE(" LIS ",'spezielle Ladeinfrastruktur'!B15),"") ->  | C54: =IF('spezielle Ladeinfrastruktur'!$B15>"",'spezielle Ladeinfrastruktur'!C15,"") ->  | D54: =IF('spezielle Ladeinfrastruktur'!$B15>"",'spezielle Ladeinfrastruktur'!D15,"") ->  | E54: =IF('spezielle Ladeinfrastruktur'!$B15>"",'spezielle Ladeinfrastruktur'!E15,"") -> 
A55: =IF('spezielle Ladeinfrastruktur'!$B17>"",A54+1,A54) -> 0 | B55: =IF('spezielle Ladeinfrastruktur'!B17>"",CONCATENATE(" LIS ",'spezielle Ladeinfrastruktur'!B17),"") ->  | C55: =IF('spezielle Ladeinfrastruktur'!$B17>"",'spezielle Ladeinfrastruktur'!C17,"") ->  | D55: =IF('spezielle Ladeinfrastruktur'!$B17>"",'spezielle Ladeinfrastruktur'!D17,"") ->  | E55: =IF('spezielle Ladeinfrastruktur'!$B17>"",'spezielle Ladeinfrastruktur'!E17,"") -> 
A56: =IF('spezielle Ladeinfrastruktur'!$B19>"",A55+1,A55) -> 0 | B56: =IF('spezielle Ladeinfrastruktur'!B19>"",CONCATENATE(" LIS ",'spezielle Ladeinfrastruktur'!B19),"") ->  | C56: =IF('spezielle Ladeinfrastruktur'!$B19>"",'spezielle Ladeinfrastruktur'!C19,"") ->  | D56: =IF('spezielle Ladeinfrastruktur'!$B19>"",'spezielle Ladeinfrastruktur'!D19,"") ->  | E56: =IF('spezielle Ladeinfrastruktur'!$B19>"",'spezielle Ladeinfrastruktur'!E19,"") -> 
A57: =IF('spezielle Ladeinfrastruktur'!$B21>"",A56+1,A56) -> 0 | B57: =IF('spezielle Ladeinfrastruktur'!B21>"",CONCATENATE(" LIS ",'spezielle Ladeinfrastruktur'!B21),"") ->  | C57: =IF('spezielle Ladeinfrastruktur'!$B21>"",'spezielle Ladeinfrastruktur'!C21,"") ->  | D57: =IF('spezielle Ladeinfrastruktur'!$B21>"",'spezielle Ladeinfrastruktur'!D21,"") ->  | E57: =IF('spezielle Ladeinfrastruktur'!$B21>"",'spezielle Ladeinfrastruktur'!E21,"") -> 
A58: =IF('spezielle Ladeinfrastruktur'!$B23>"",A57+1,A57) -> 0 | B58: =IF('spezielle Ladeinfrastruktur'!B23>"",CONCATENATE(" LIS ",'spezielle Ladeinfrastruktur'!B23),"") ->  | C58: =IF('spezielle Ladeinfrastruktur'!$B23>"",'spezielle Ladeinfrastruktur'!C23,"") ->  | D58: =IF('spezielle Ladeinfrastruktur'!$B23>"",'spezielle Ladeinfrastruktur'!D23,"") ->  | E58: =IF('spezielle Ladeinfrastruktur'!$B23>"",'spezielle Ladeinfrastruktur'!E23,"") -> 
A59: =IF('spezielle Ladeinfrastruktur'!$B25>"",A58+1,A58) -> 0 | B59: =IF('spezielle Ladeinfrastruktur'!B25>"",CONCATENATE(" LIS ",'spezielle Ladeinfrastruktur'!B25),"") ->  | C59: =IF('spezielle Ladeinfrastruktur'!$B25>"",'spezielle Ladeinfrastruktur'!C25,"") ->  | D59: =IF('spezielle Ladeinfrastruktur'!$B25>"",'spezielle Ladeinfrastruktur'!D25,"") ->  | E59: =IF('spezielle Ladeinfrastruktur'!$B25>"",'spezielle Ladeinfrastruktur'!E25,"") -> 
D60: Summe: | E60: =ROUND(SUM(E10:E59),0) -> 0
